fUSD/lending_fUSD_20240617
["ID","MTS","AMOUNT","RATE_DAILY","PERIOD"]
[329716595,1718602374412,-5955.97478902,9.941e-05,2]
[329716596,1718602374443,-348.2371921,9.941e-05,2]
[329716597,1718602374479,-3695.78801888,9.941e-05,2]
[329716598,1718602375461,-267.62549217,9.937e-05,2]
[329716599,1718602375498,-2685.17212702,9.941e-05,2]
[329716600,1718602375554,-267.03901205,9.941e-05,2]
[329716601,1718602376525,155.0,9.937e-05,2]
[329716602,1718602379518,1000.0,9.94e-05,2]
[329716603,1718602380997,204.3583909,9.941e-05,2]
[329716604,1718602382745,2196.89348564,9.939e-05,2]
[329716605,1718602385421,283.28614578,9.939e-05,2]
[329716606,1718602391285,487.90966667,9.941e-05,2]
[329716607,1718602393622,-5.75217305,9.942e-05,2]
[329716609,1718602423309,150.0,9.942e-05,2]
[329716610,1718602423352,150.0,9.942e-05,2]
[329716611,1718602423407,150.0,9.942e-05,2]
[329716612,1718602423461,150.0,9.942e-05,2]
[329716613,1718602423505,150.0,9.942e-05,2]
[329716614,1718602423540,150.0,9.942e-05,2]
[329716615,1718602423588,150.0,9.942e-05,2]
[329716616,1718602423626,150.0,9.942e-05,2]
[329716617,1718602423669,233.99636375,9.942e-05,2]
[329716618,1718602423747,150.0,9.942e-05,2]
[329716619,1718602430224,-150.0,9.942e-05,2]
[329716620,1718602430467,-150.0,9.942e-05,2]
[329716621,1718602430714,-150.0,9.942e-05,2]
[329716622,1718602431280,-150.0,9.942e-05,2]
[329716623,1718602431644,-150.0,9.942e-05,2]
[329716624,1718602431897,-150.0,9.942e-05,2]
[329716625,1718602432140,-150.0,9.942e-05,2]
[329716626,1718602432304,-150.0,9.942e-05,2]
[329716627,1718602432375,-150.0,9.942e-05,2]
[329716628,1718602432499,-150.0,9.942e-05,2]
[329716629,1718602432600,-150.0,9.942e-05,2]
[329716630,1718602432721,-150.0,9.942e-05,2]
[329716631,1718602432833,-150.0,9.942e-05,2]
[329716632,1718602432935,-150.0,9.942e-05,2]
[329716633,1718602432989,-150.0,9.942e-05,2]
[329716634,1718602435681,155.0,9.941e-05,2]
[329716635,1718602451636,155.0,9.941e-05,2]
[329716636,1718602471736,2142.71567977,6.94e-05,2]
[329716637,1718602471792,170.49128555,6.94e-05,2]
[329716638,1718602500263,9829.50871445,9.941e-05,2]
[329716639,1718602500311,10000.0,9.941e-05,2]
[329716640,1718602500347,10000.0,9.941e-05,2]
[329716641,1718602500413,10000.0,9.941e-05,2]
[329716642,1718602500452,3330.77424287,9.941e-05,2]
[329716643,1718602535889,6669.22575713,9.941e-05,2]
[329716644,1718602535929,10000.0,9.941e-05,2]
[329716645,1718602535986,10000.0,9.941e-05,2]
[329716646,1718602536072,10000.0,9.941e-05,2]
[329716647,1718602536127,3330.77424287,9.941e-05,2]
[329716648,1718602565842,6669.22575713,9.941e-05,2]
[329716649,1718602720699,-150.0,9.934e-05,2]
[329716650,1718602722005,-150.0,9.934e-05,2]
[329716651,1718602729580,-150.0,9.933e-05,2]
[329716652,1718602730377,-150.0,9.933e-05,2]
[329716653,1718602731179,-150.0,9.933e-05,2]
[329716659,1718602804301,-73.13614426,9.933e-05,2]
[329716660,1718602804345,-76.86385574,9.933e-05,2]
[329716661,1718602805353,-150.0,9.933e-05,2]
[329716662,1718602806340,-73.13614426,9.933e-05,2]
[329716663,1718602806368,-76.86385574,9.933e-05,2]
[329716664,1718602807281,-73.13614426,9.933e-05,2]
[329716665,1718602807323,-76.86385574,9.933e-05,2]
[329716669,1718602848607,-73.13614426,9.933e-05,2]
[329716670,1718602848656,-150.0,9.933e-05,2]
[329716671,1718602848703,-150.0,9.933e-05,2]
[329716672,1718602848741,-150.0,9.933e-05,2]
[329716673,1718602848781,-150.0,9.933e-05,2]
[329716674,1718602848811,-150.0,9.933e-05,2]
[329716675,1718602848851,-526.00095333,9.933e-05,2]
[329716676,1718602848889,-150.0,9.933e-05,2]
[329716677,1718602848935,-150.0,9.933e-05,2]
[329716678,1718602848984,-150.0,9.933e-05,2]
[329716679,1718602849018,-150.0,9.933e-05,2]
[329716680,1718602849056,-150.0,9.933e-05,2]
[329716681,1718602849087,-150.0,9.933e-05,2]
[329716682,1718602849117,-150.0,9.933e-05,2]
[329716683,1718602849151,-232.66256746,9.933e-05,2]
[329716684,1718602849196,-7368.20033495,9.933e-05,2]
[329716685,1718602850112,-10000.0,9.933e-05,2]
[329716686,1718602850880,-10000.0,9.933e-05,2]
[329716687,1718602868503,-1000.0,9.932e-05,2]
[329716688,1718602868913,-1000.0,9.932e-05,2]
[329716689,1718602869484,-371.61883946,9.932e-05,2]
[329716690,1718602869565,-628.38116054,9.933e-05,2]
[329716691,1718602869767,-1000.0,9.933e-05,2]
[329716692,1718602869942,-1000.0,9.933e-05,2]
[329716693,1718602870317,-1000.0,9.933e-05,2]
[329716694,1718602870631,-1000.0,9.933e-05,2]
[329716695,1718602870955,-1000.0,9.933e-05,2]
[329716696,1718602871283,-1000.0,9.933e-05,2]
[329716697,1718602876917,153.0,0.000275,120]
[329716701,1718602953668,155.0,0.00015,7]
[329716703,1718603059369,296.52337526,0.00016,7]
[329716733,1718603359298,-2889.04715321,9.516e-05,2]
[329716750,1718603433776,-453.88610411,9.515e-05,2]
[329716751,1718603433790,-404.27780542,9.516e-05,2]
[329716752,1718603433807,-1003.03462487,9.516e-05,2]
[329716753,1718603433820,-1323.62599236,9.517e-05,2]
[329716754,1718603433835,-217.70921893,9.517e-05,2]
[329716755,1718603433848,-428.52886908,9.518e-05,2]
[329716756,1718603433859,-163.19,9.52e-05,2]
[329716757,1718603433871,-515.09,9.856e-05,2]
[329716758,1718603433884,-150.0,9.932e-05,2]
[329716759,1718603433899,-150.0,9.932e-05,2]
[329716760,1718603433920,-8394.20833278,9.933e-05,2]
[329716761,1718603433941,-163.94201956,9.933e-05,2]
[329716762,1718603433954,-1335.91829346,9.933e-05,2]
[329716763,1718603433992,-217.70921893,9.933e-05,2]
[329716764,1718603434020,-339.13723125,9.935e-05,2]
[329716765,1718603434031,-499.99,9.935e-05,2]
[329716766,1718603434044,-237.72,9.935e-05,2]
[329716767,1718603434055,-1607.71,9.935e-05,2]
[329716768,1718603434072,-4312.60503946,0.0001,2]
[329716769,1718603434086,-16559.7560088,0.0001,2]
[329716770,1718603434108,-538.4252942,0.00010036,2]
[329716771,1718603434120,-707.97228072,0.00010044,2]
[329716772,1718603434149,-226.52332743,0.00010046,2]
[329716773,1718603434161,-435.75758224,0.00010046,2]
[329716774,1718603434173,-891.69,0.00010046,2]
[329716775,1718603434189,-243.69577692,0.000101,2]
[329716776,1718603434202,-605.6,0.000101,2]
[329716777,1718603434214,-2374.86184575,0.00011,2]
[329716778,1718603434225,-11165.5624088,0.00011123,2]
[329716780,1718603434778,-11370.8375912,0.00011123,2]
[329716781,1718603434831,-2713.55,0.00011149,2]
[329716782,1718603434856,-1626.12,0.00011187,2]
[329716783,1718603434867,-1129.32,0.00011193,2]
[329716784,1718603434882,-685.34,0.00011248,2]
[329716785,1718603434927,-200.0,0.00011324,2]
[329716786,1718603434948,-250.0,0.00011353,2]
[329716787,1718603434969,-438.28,0.00011406,2]
[329716788,1718603434981,-1000.0,0.00011648,2]
[329716789,1718603435001,-400.0,0.00011649,2]
[329716790,1718603435034,-250.0,0.0001165,2]
[329716791,1718603435047,-178.2,0.00011651,2]
[329716792,1718603435060,-490.68,0.00011848,2]
[329716793,1718603435073,-264.1328159,0.00012119,2]
[329716794,1718603435087,-515.09,0.0001212,2]
[329716795,1718603435124,-1000.0,0.00012812,2]
[329716796,1718603435140,-1000.0,0.00012847,2]
[329716797,1718603435154,-1000.0,0.00012883,2]
[329716798,1718603435165,-1000.0,0.00012918,2]
[329716799,1718603435216,-1000.0,0.00012953,2]
[329716800,1718603435263,-1000.0,0.00012988,2]
[329716801,1718603435294,-1000.0,0.00013023,2]
[329716802,1718603435324,-1000.0,0.00013058,2]
[329716803,1718603435340,-1000.0,0.00013093,2]
[329716804,1718603435364,-1000.0,0.00013129,2]
[329716805,1718603435375,-1000.0,0.00013164,2]
[329716806,1718603435403,-326.04163818,0.00013195,2]
[329716807,1718603435430,-779.5215,0.00013195,2]
[329716808,1718603435479,-9283.1842,0.00013195,2]
[329716809,1718603435491,-1000.0,0.00013199,2]
[329716811,1718603435537,-191.89125835,0.00013204,2]
[329716813,1718603435549,-1000.0,0.00013234,2]
[329716814,1718603435562,-1000.0,0.00013269,2]
[329716816,1718603435582,-514373.60088439,0.00013294,2]
[329716817,1718603435729,-11132.31610335,0.00013294,2]
[329716818,1718603435741,-10994.0339,0.00013295,2]
[329716819,1718603435765,-125305.00919997,0.00013295,2]
[329716820,1718603435809,-15321.1287449,0.00013295,2]
[329716821,1718603435830,-66738.59326305,0.00013295,2]
[329716822,1718603435848,-2820.0,0.00013295,2]
[329716830,1718603441236,-3061.19212537,0.00013295,2]
[329716831,1718603441264,-4272.26535015,0.00013295,2]
[329716832,1718603441287,-27481.81131656,0.00013295,2]
[329716833,1718603441299,-1000.0,0.00013304,2]
[329716834,1718603441335,-1000.0,0.0001334,2]
[329716835,1718603441359,-1000.0,0.00013375,2]
[329716836,1718603441371,-1000.0,0.0001341,2]
[329716837,1718603441387,-1000.0,0.00013445,2]
[329716838,1718603441409,-211.11401912,0.0001348,2]
[329716839,1718603441784,-788.88598088,0.0001348,2]
[329716840,1718603441795,-219.73128288,0.00013699,2]
[329716841,1718603441808,-1989.47898931,0.00013699,2]
[329716842,1718603441821,-2516.30847202,0.00013699,2]
[329716843,1718603442231,-1391.00125579,0.00013699,2]
[329716844,1718603442248,-239.01,0.00013699,2]
[329716845,1718603442275,-2751.0,0.00013699,2]
[329716846,1718603442291,-200.0,0.00013699,2]
[329716847,1718603442301,-344.35,0.00013699,2]
[329716848,1718603442313,-219.8,0.0001389,3]
[329716849,1718603442325,-1594.9829745,0.000139,2]
[329716850,1718603442336,-1129.32,0.00013933,2]
[329716851,1718603442353,-192.00549388,0.00013968,2]
[329716852,1718603442365,-176.77024669,0.00013968,2]
[329716853,1718603442377,-187.33012332,0.0001398,2]
[329716854,1718603442394,-7598.96155489,0.00014,2]
[329716855,1718603442415,-654.51397652,0.00014,2]
[329716856,1718603442444,-3021.65992862,0.00014,2]
[329716887,1718603445650,-5060.62730203,0.00014,2]
[329716888,1718603445677,-500.0,0.00014,2]
[329716889,1718603445699,-696.2,0.00014,2]
[329716890,1718603445724,-289855.13316222,0.00014,2]
[329716891,1718603445753,-719.26763437,0.00014,2]
[329716892,1718603446116,-352.75909744,0.00014,2]
[329716893,1718603446131,-34276.14929742,0.00014,2]
[329716894,1718603446145,-1290.77256158,0.00014,2]
[329716895,1718603446160,-4896.92,0.00014,2]
[329716896,1718603446497,-500.0,0.00014,2]
[329716897,1718603446518,-401.12251151,0.00014,2]
[329716898,1718603446538,-691.50828628,0.00014,2]
[329716899,1718603446552,-2680.06993109,0.00014,2]
[329716900,1718603446566,-593.46637594,0.00014,2]
[329716901,1718603446626,-880.36175698,0.00014,2]
[329716902,1718603446640,-409.76959177,0.00014,2]
[329716903,1718603446670,-506043.2007213,0.00014,2]
[329716904,1718603446685,-167.04454445,0.0001418,2]
[329716905,1718603446712,-163.19,0.0001428,2]
[329716906,1718603447001,-515.09,0.00014384,2]
[329716907,1718603447038,-380.1747653,0.000149,2]
[329716908,1718603447055,-42783.09560704,0.00015,2]
[329716909,1718603447072,-657.03544883,0.00015,2]
[329716910,1718603447238,-9313.40183694,0.00015,2]
[329716911,1718603447282,-2532.92399336,0.00015,2]
[329716912,1718603447309,-8949.99443042,0.00015,2]
[329716913,1718603447332,-8947.21879473,0.00015,2]
[329716914,1718603447370,-8943.78386462,0.00015,2]
[329716915,1718603447402,-9077.54866152,0.00015,2]
[329716916,1718603447416,-8943.84023489,0.00015,2]
[329716918,1718603447444,-515.37748105,0.00015,2]
[329716920,1718603447462,-348.49967892,0.00015,2]
[329716931,1718603448479,-500.0,0.00015,2]
[329716932,1718603449613,-117182.03944402,0.00015,2]
[329716933,1718603449636,-2854.48132401,0.00015,2]
[329716951,1718603450536,-1160.28479229,0.00015,2]
[329717390,1718603729395,-1278.63374008,9.515e-05,2]
[329717391,1718603729464,-521.83256212,9.515e-05,2]
[329717425,1718604356970,150.0,7.136e-05,2]
[329717426,1718604357010,150.0,7.136e-05,2]
[329717427,1718604357089,150.0,7.136e-05,2]
[329717428,1718604357130,189.3101332,7.136e-05,2]
[329717429,1718604357184,1915.60858066,7.136e-05,2]
[329717430,1718604376906,150.0,7.136e-05,2]
[329717431,1718604376947,150.0,7.136e-05,2]
[329717432,1718604376993,103.35504439,7.136e-05,2]
[329717433,1718604401665,150.0,7.136e-05,2]
[329717434,1718604401728,150.0,7.136e-05,2]
[329717435,1718604401802,150.0,7.136e-05,2]
[329717436,1718604401888,150.0,7.136e-05,2]
[329717437,1718604401987,150.0,7.136e-05,2]
[329717438,1718604402032,150.0,7.136e-05,2]
[329717439,1718604421654,150.0,7.136e-05,2]
[329717440,1718604421707,150.0,7.136e-05,2]
[329717441,1718604421770,150.0,7.136e-05,2]
[329717442,1718604421813,150.0,7.136e-05,2]
[329717443,1718604421853,150.0,7.136e-05,2]
[329717444,1718604421892,150.0,7.136e-05,2]
[329717445,1718604444793,343.89367033,7.136e-05,2]
[329717446,1718604445829,150.0,7.136e-05,2]
[329717447,1718604445914,300.0,7.136e-05,2]
[329717448,1718604447756,-154.91279754,9.513e-05,2]
[329717449,1718604449467,-162.63655556,9.513e-05,2]
[329717450,1718604450349,-162.63655556,9.513e-05,2]
[329717451,1718604496440,150.0,9.465e-05,2]
[329717452,1718604496474,150.0,9.465e-05,2]
[329717453,1718604496506,150.0,9.465e-05,2]
[329717454,1718604496542,150.0,9.465e-05,2]
[329717455,1718604496584,150.0,9.465e-05,2]
[329717456,1718604496623,150.0,9.465e-05,2]
[329717457,1718604496654,150.0,9.465e-05,2]
[329717458,1718604496693,150.0,9.465e-05,2]
[329717459,1718604496764,150.0,9.465e-05,2]
[329717460,1718604496802,150.0,9.465e-05,2]
[329717461,1718604496837,150.0,9.465e-05,2]
[329717462,1718604496865,150.0,9.465e-05,2]
[329717463,1718604496913,150.0,9.465e-05,2]
[329717464,1718604496942,1172.985941,9.465e-05,2]
[329717465,1718604613138,-9060.54939774,9.512e-05,2]
[329717466,1718604615565,-45.81504467,9.513e-05,2]
[329717467,1718604615649,-104.18495533,9.513e-05,2]
[329717468,1718604615982,-150.0,9.513e-05,2]
[329717469,1718604616169,-150.0,9.513e-05,2]
[329717470,1718604616555,-150.0,9.513e-05,2]
[329717471,1718604616693,-150.0,9.513e-05,2]
[329717472,1718604616786,-150.0,9.513e-05,2]
[329717473,1718604616909,-150.0,9.513e-05,2]
[329717474,1718604617089,-150.0,9.513e-05,2]
[329717475,1718604617225,-45.81504467,9.513e-05,2]
[329717476,1718604625448,-150.0,9.514e-05,2]
[329717477,1718604625603,-150.0,9.514e-05,2]
[329717478,1718604625801,-150.0,9.514e-05,2]
[329717479,1718604626143,-11.48454036,9.514e-05,2]
[329717480,1718604629835,138.51545964,9.465e-05,2]
[329717481,1718604629904,150.0,9.465e-05,2]
[329717482,1718604629937,150.0,9.465e-05,2]
[329717483,1718604629978,150.0,9.465e-05,2]
[329717484,1718604630044,150.0,9.465e-05,2]
[329717485,1718604630106,150.0,9.465e-05,2]
[329717486,1718604630164,95.48090411,9.465e-05,2]
[329717498,1718604641787,-689.542163,9.515e-05,2]
[329717499,1718604641819,-387.04380162,9.516e-05,2]
[329717500,1718604641846,-31.39469036,0.0001,2]
[329717501,1718604641866,-2701.86839428,0.0001,2]
[329717502,1718604641881,-815.23057093,0.0001,2]
[329717503,1718604641899,-1215.25649779,0.0001,2]
[329717504,1718604641925,-235.40449572,0.00012655,2]
[329717505,1718604641948,-1000.0,0.00012656,2]
[329717506,1718604641978,-201.89348429,0.00012657,2]
[329717507,1718604641993,-155.0,0.00012658,2]
[329717508,1718604642015,-554.92,0.0001307,2]
[329717509,1718604642030,-36368.11567705,0.00013195,2]
[329717510,1718604642048,-3799.123425,0.00013195,2]
[329717511,1718604642069,-14778.235088,0.00013195,2]
[329717514,1718604642306,-11044.41060995,0.00013195,2]
[329717516,1718604642330,-806.90401057,0.00013698,5]
[329717518,1718604642348,-756.5420071,0.0001414,2]
[329717521,1718604642390,-499.99,0.0001414,2]
[329717522,1718604642426,-150.99,0.0001414,2]
[329717523,1718604642444,-773.64,0.00014321,2]
[329717524,1718604642460,-3817.52337248,0.00014321,2]
[329717525,1718604642480,-8208.53520196,0.00014321,2]
[329717526,1718604642516,-2948.88907668,0.00014321,2]
[329717527,1718604642531,-1924.09839103,0.00014321,2]
[329717528,1718604643145,-1251.33807564,0.00014321,2]
[329717529,1718604643165,-1665.76588221,0.00014321,2]
[329717530,1718604643208,-383.19273597,0.00014657,2]
[329717531,1718604643243,-414.35299843,0.00014692,2]
[329717532,1718604643257,-756.54200709,0.000149,2]
[329717533,1718604643278,-1458.075356,0.000149,2]
[329717534,1718604643293,-1587.875444,0.000149,2]
[329717535,1718604643321,-1211.4245759,0.000149,2]
[329717539,1718604645863,-665.00054838,0.000149,2]
[329717544,1718604647741,-1079.31918,0.0001,2]
[329717545,1718604647764,-7224.94103237,0.0001,2]
[329717549,1718604647778,-1594.93427572,0.000149,2]
[329717551,1718604647794,-3783.9453,0.000149,2]
[329717553,1718604647824,-206.24,0.00014988,2]
[329717555,1718604647869,-22559.98373808,0.00015,2]
[329717559,1718604647965,150.0,9.465e-05,2]
[329717561,1718604648028,150.0,9.465e-05,2]
[329717563,1718604648087,150.0,9.465e-05,2]
[329717569,1718604648161,150.0,9.465e-05,2]
[329717575,1718604648210,150.0,9.465e-05,2]
[329717578,1718604648315,150.0,9.465e-05,2]
[329717579,1718604648429,150.0,9.465e-05,2]
[329717580,1718604648472,150.0,9.465e-05,2]
[329717581,1718604648526,150.0,9.465e-05,2]
[329717582,1718604648928,-684.85547295,0.00015,2]
[329717583,1718604648941,-308.25,0.00015,2]
[329717584,1718604648954,-1671.32115809,0.00015,2]
[329717585,1718604648967,-340.46620164,0.00015,2]
[329717586,1718604649321,-44008.59491679,0.00015,2]
[329717587,1718604649334,-1353.88104019,0.00015,2]
[329717588,1718604649368,-636.85366568,0.00015,2]
[329717589,1718604649404,-2202.86997071,0.00015,2]
[329717590,1718604649453,-379502.10248209,0.00015,2]
[329717591,1718604649466,-534.79419597,0.00015,2]
[329717592,1718604649484,-344.47983131,0.00015,2]
[329717593,1718604649531,-0.00419607,0.00015,2]
[329717594,1718604649556,-2779.7100927,0.00015,2]
[329717595,1718604650178,-429.0396687,0.00015,2]
[329717596,1718604650199,-873.0,0.00015,2]
[329717597,1718604650222,-758.46063196,0.00015,2]
[329717598,1718604650281,-1946.2076772,0.00015,2]
[329717599,1718604650317,-2506.31174187,0.00015,2]
[329717600,1718604650338,-8620.43,0.00015,2]
[329717601,1718604650914,-500.0,0.00015,2]
[329717602,1718604650926,-11400.37442781,0.00015,2]
[329717603,1718604650939,-411.06881336,0.00015,2]
[329717604,1718604650959,-178.66509,0.00015,2]
[329717605,1718604650971,-200.0,0.00015125,2]
[329717606,1718604650982,-1580.27573235,0.00015333,2]
[329717607,1718604650992,-554.92,0.00015334,2]
[329717608,1718604651028,-883.78,0.00015399,2]
[329717609,1718604651039,-321.04,0.00015444,2]
[329717610,1718604651051,-150.0,0.00015646,2]
[329717611,1718604651061,-5584.17,0.00015688,2]
[329717612,1718604651108,-250.0,0.00015936,2]
[329717613,1718604651121,-1048.51520528,0.00016,2]
[329717614,1718604651148,-155.0,0.00016,2]
[329717615,1718604651162,-250.0,0.00016555,2]
[329717616,1718604651178,-195.88,0.00016649,2]
[329717617,1718604651190,-343.51,0.00016826,2]
[329717618,1718604651204,-3645.79,0.00016869,2]
[329717619,1718604651216,-554.92,0.00017598,2]
[329717620,1718604651248,-2594.0,0.000179,2]
[329717621,1718604651282,-687.0,0.00018,2]
[329717622,1718604651307,-883.78,0.00018139,2]
[329717623,1718604651368,-1070.77,0.00018177,2]
[329717624,1718604651380,-163.19,0.00018204,2]
[329717625,1718604651391,-452.6,0.00018314,2]
[329717626,1718604651420,-452.6,0.00018364,2]
[329717627,1718604651446,-452.6,0.00018414,2]
[329717628,1718604651491,-452.6,0.00018464,2]
[329717629,1718604651505,-452.6,0.00018514,2]
[329717630,1718604651517,-452.6,0.00018565,2]
[329717631,1718604651549,-452.6,0.00018615,2]
[329717632,1718604651560,-452.6,0.00018665,2]
[329717633,1718604651605,-452.6,0.00018715,2]
[329717634,1718604651628,-452.6,0.00018766,2]
[329717635,1718604651639,-452.6,0.00018816,2]
[329717636,1718604651683,-452.6,0.00018866,2]
[329717637,1718604651702,-452.6,0.00018916,2]
[329717638,1718604651744,-452.6,0.00018966,2]
[329717639,1718604651769,-729.27402728,0.00019,2]
[329717640,1718604651783,-452.6,0.00019017,2]
[329717642,1718604651795,-452.6,0.00019067,2]
[329717644,1718604651805,-452.6,0.00019117,2]
[329717646,1718604651832,-452.6,0.00019167,2]
[329717648,1718604651843,-452.6,0.00019218,2]
[329717651,1718604651882,-452.6,0.00019268,2]
[329717653,1718604651893,-554.92,0.00019861,2]
[329717655,1718604651906,-195.88,0.00019979,2]
[329717657,1718604651917,-178.66509,0.0002,2]
[329717659,1718604651934,-226.83513534,0.000201,2]
[329717671,1718604652221,-230.0,0.00020211,2]
[329717673,1718604652235,-883.78,0.00020878,2]
[329717676,1718604652283,-1250.0,0.00021,2]
[329717678,1718604652296,-151.0,0.0002146,2]
[329717680,1718604652320,-191.34,0.00021918,2]
[329717682,1718604652332,-250.0,0.00021918,2]
[329717684,1718604652344,-151.0,0.00022091,2]
[329717686,1718604652357,-554.92,0.00022125,2]
[329717689,1718604652416,-230.51,0.00022507,2]
[329717690,1718604652430,-151.0,0.00022722,3]
[329717692,1718604652467,-327.21,0.00022848,2]
[329717694,1718604652479,-151.0,0.00023353,3]
[329717696,1718604652492,-173.97,0.00023436,2]
[329717698,1718604652503,-343.51,0.00023556,2]
[329717700,1718604652536,-151.0,0.00023984,3]
[329717702,1718604652553,-151.0,0.00024357,4]
[329717704,1718604652588,-388.78277645,0.00024381,2]
[329717706,1718604652619,-156.47518064,0.00024382,2]
[329717708,1718604652631,-279.26,0.00024384,2]
[329717709,1718604652645,-170.14,0.00024384,2]
[329717711,1718604652668,-554.92,0.00024389,2]
[329717713,1718604652679,-151.0,0.00024615,4]
[329717715,1718604652692,-530.52,0.0002463,2]
[329717716,1718604652708,-428.7975684,0.00024656,2]
[329717718,1718604652718,-151.0,0.00024854,2]
[329717720,1718604652734,-2753.24221848,0.00024899,2]
[329717722,1718604652747,-2500.0,0.000249,2]
[329717724,1718604652758,-3004.0,0.00025,7]
[329717726,1718604652769,-3000.0,0.00025,5]
[329717728,1718604652780,-178.6651,0.00025,2]
[329717730,1718604652804,-2704.60856628,0.00025,2]
[329717732,1718604652856,-151.0,0.00025245,4]
[329717734,1718604652875,-230.51,0.00025321,2]
[329717736,1718604652899,-501.80868068,0.00025698,2]
[329717739,1718604652925,-151.0,0.00025876,5]
[329717741,1718604652943,-171.28866658,0.00026013,2]
[329717743,1718604652960,-155.14585038,0.0002602,2]
[329717745,1718604652983,-321.00633833,0.00026025,7]
[329717747,1718604653007,-183.74181546,0.00026069,2]
[329717749,1718604653022,-183.74181546,0.00026091,2]
[329717751,1718604653037,-446.62378627,0.00026102,2]
[329717753,1718604653049,-316.86864567,0.00026108,2]
[329717755,1718604653060,-159.27301698,0.00026111,2]
[329717757,1718604653073,-158.282991,0.00026117,7]
[329717759,1718604653086,-167.315086,0.00026117,7]
[329717761,1718604653099,-171.28866658,0.00026162,2]
[329717763,1718604653111,-160.27793716,0.00026166,2]
[329717765,1718604653124,-155.14585038,0.00026186,2]
[329717768,1718604653143,-197.78895733,0.00026189,2]
[329717770,1718604653176,-158.42682675,0.00026227,2]
[329717772,1718604653190,-150.0,0.00026262,2]
[329717774,1718604653202,-169.13274947,0.00026273,2]
[329717775,1718604653216,-778.65905969,0.00026299,2]
[329717777,1718604653229,-163.12650287,0.00026362,2]
[329717779,1718604653269,-446.62378627,0.00026379,2]
[329717781,1718604653284,-154.20081625,0.00026405,2]
[329717783,1718604653297,-332.77149227,0.00026479,2]
[329717785,1718604653315,-155.14585038,0.00026502,2]
[329717787,1718604653335,-151.0,0.00026507,5]
[329717789,1718604653348,-462.42345503,0.00026613,2]
[329717791,1718604653396,-183.74181546,0.0002664,2]
[329717793,1718604653413,-554.92,0.00026653,2]
[329717795,1718604653431,-183.74181546,0.00026662,2]
[329717798,1718604653476,-164.28,0.00026685,2]
[329717800,1718604653488,-155.14585038,0.00026727,2]
[329717801,1718604653499,-172.57819041,0.00026747,2]
[329717804,1718604653513,-172.57819041,0.00026758,2]
[329717805,1718604653538,-172.57819041,0.00026785,2]
[329717808,1718604653550,-172.57819041,0.00026786,2]
[329717809,1718604653563,-172.57819041,0.00026788,2]
[329717812,1718604653582,-150.0,0.00026814,2]
[329717814,1718604653612,-460.69291176,0.000269,2]
[329717816,1718604653628,-159.93934288,0.00026975,2]
[329717818,1718604653657,-14529.7765645,0.00027,3]
[329717820,1718604653673,-6518.72515564,0.00027,2]
[329717822,1718604653702,-328.64556,0.00027,2]
[329717836,1718604653925,-8949.99443042,0.00027,2]
[329717838,1718604653939,-8947.21879473,0.00027,2]
[329717840,1718604653952,-8943.78386462,0.00027,2]
[329717843,1718604653982,-9077.54866152,0.00027,2]
[329717845,1718604654003,-8943.84023489,0.00027,2]
[329717850,1718604654162,-176.69999223,0.00027,2]
[329717902,1718604669758,150.0,9.465e-05,2]
[329717903,1718604669812,150.0,9.465e-05,2]
[329717906,1718605202917,150.0,9.465e-05,2]
[329717907,1718605204834,150.0,9.465e-05,2]
[329717908,1718605205135,150.0,9.465e-05,2]
[329717909,1718605205180,98.69147384,9.465e-05,2]
[329717910,1718605246674,625.61991227,9.465e-05,2]
[329717911,1718605310806,150.0,8.992e-05,2]
[329717912,1718605310848,150.0,8.992e-05,2]